bitfinex/quotes_BTCUSD_20250619
["timestamp","ask_amount","ask_price","bid_price","bid_amount"]
[1750300465140,0.64681344,104880.0,104870.0,0.0663]
[1750300465353,0.64681372,104880.0,104870.0,0.0663]
[1750300468253,0.20917148,104880.0,104870.0,0.0663]
[1750300468466,0.22824061,104880.0,104870.0,0.0663]
[1750300468964,0.21929795,104880.0,104870.0,0.0663]
[1750300469183,0.2282423,104880.0,104870.0,0.0663]
[1750300473037,0.26727731,104880.0,104870.0,0.0663]
[1750300477688,0.26728208,104880.0,104870.0,0.0663]
[1750300481738,0.25774756,104880.0,104870.0,0.0663]
[1750300483030,0.25774952,104880.0,104870.0,0.0663]
[1750300483430,0.28641552,104880.0,104870.0,0.0663]
[1750300485454,0.0957214,104880.0,104870.0,0.0663]
[1750300485672,0.30525501,104880.0,104870.0,0.0663]
[1750300485884,0.27658901,104880.0,104870.0,0.0663]
[1750300486106,0.2670544,104880.0,104870.0,0.26654783]
[1750300486334,0.25752015,104880.0,104870.0,0.27608326]
[1750300486567,0.25752015,104880.0,104870.0,0.26654783]
[1750300486787,0.2670544,104880.0,104870.0,0.26654783]
[1750300487225,0.25752015,104880.0,104870.0,0.26654783]
[1750300487443,0.25752015,104880.0,104870.0,0.27608326]
[1750300488308,0.25752015,104880.0,104870.0,0.26654783]
[1750300488572,0.2670544,104880.0,104870.0,0.26654783]
[1750300488789,0.27658883,104880.0,104870.0,0.0663]
[1750300489007,0.2670544,104880.0,104870.0,0.0663]
[1750300489445,0.27658883,104880.0,104870.0,0.0663]
[1750300490231,0.28612335,104880.0,104870.0,0.0663]
[1750300490491,0.09565796,104880.0,104870.0,0.0663]
[1750300490709,0.27658883,104880.0,104870.0,0.0663]
[1750300492487,0.30525483,104880.0,104870.0,0.0663]
[1750300494018,0.28618615,104880.0,104870.0,0.25701231]
[1750300494247,0.29572031,104880.0,104870.0,0.27608326]
[1750300495031,0.29571534,104880.0,104870.0,0.27608326]
[1750300495496,0.27664712,104880.0,104870.0,0.36278959]
[1750300495724,4.694399,104890.0,104880.0,0.28249723]
[1750300495942,0.00894538,104890.0,104880.0,0.28249723]
[1750300496244,0.00894538,104890.0,104880.0,0.29203148]
[1750300496245,0.20894127,104890.0,104880.0,0.29203148]
[1750300496469,0.02800777,104890.0,104880.0,0.25389412]
[1750300496721,0.02800777,104890.0,104880.0,0.26342873]
[1750300496948,0.02800777,104890.0,104880.0,0.25389412]
[1750300497167,0.03754129,104890.0,104880.0,0.0632]
[1750300497391,0.22800777,104890.0,104880.0,0.0632]
[1750300497828,0.22800757,104890.0,104880.0,0.0632]
[1750300498061,0.22800757,104890.0,104880.0,0.0727347]
[1750300498277,0.22800757,104890.0,104880.0,0.0632]
[1750300498501,0.41868351,104890.0,104880.0,0.0632]
[1750300498722,0.22821712,104890.0,104880.0,0.0632]
[1750300499814,0.21868396,104890.0,104880.0,0.0632]
[1750300500597,0.20914862,104890.0,104880.0,0.0632]
[1750300502792,0.23781162,104890.0,104880.0,0.0632]
[1750300506213,0.22758368,104890.0,104880.0,0.0632]
[1750300506431,0.20020955,104890.0,104880.0,0.0632]
[1750300506873,0.22859993,104890.0,104880.0,0.0632]
[1750300507298,0.21906641,104890.0,104880.0,0.0632]
[1750300507522,0.22859993,104890.0,104880.0,0.0632]
[1750300507737,0.21906641,104890.0,104880.0,0.0727347]
[1750300507974,0.21906641,104890.0,104880.0,0.08226931]
[1750300508202,0.21906632,104890.0,104880.0,0.26342882]
[1750300508415,0.21906632,104890.0,104880.0,0.27296343]
[1750300508870,4.694399,104890.0,104880.0,0.30156654]
[1750300509087,4.494399,104890.0,104880.0,0.3015659]
[1750300509300,4.494399,104890.0,104880.0,0.39780766]
[1750300509946,0.04909225,104900.0,104890.0,0.27304307]
[1750300510179,0.04909225,104900.0,104890.0,0.26350964]
[1750300510385,0.04909225,104900.0,104890.0,0.27304325]
[1750300511030,0.04909225,104900.0,104890.0,0.26350964]
[1750300511243,0.04909225,104900.0,104890.0,0.27304325]
[1750300512164,0.24909225,104900.0,104890.0,0.27304325]
[1750300512382,0.24909207,104900.0,104890.0,0.2921102]
[1750300512599,0.2,104900.0,104890.0,0.30164327]
[1750300512814,4.494399,104900.0,104890.0,0.30164282]
[1750300513028,0.26399068,104910.0,104900.0,0.0641]
[1750300513244,0.2735222,104910.0,104900.0,0.07363288]
[1750300513467,0.40536809,104910.0,104900.0,0.27382307]
[1750300513680,0.40536809,104910.0,104900.0,0.28335532]
[1750300513892,0.40536809,104910.0,104900.0,0.2833555]
[1750300514322,0.40536809,104910.0,104900.0,0.4378755]
[1750300514528,0.40536809,104910.0,104900.0,0.42834316]
[1750300514941,0.21489934,104910.0,104900.0,0.43787568]
[1750300515154,0.21489934,104910.0,104900.0,0.42834316]
[1750300515395,0.21489934,104910.0,104900.0,0.43787568]
[1750300515598,0.22443077,104910.0,104900.0,0.42834325]
[1750300516247,0.23396238,104910.0,104900.0,0.41981055]
[1750300516457,0.22443077,104910.0,104900.0,0.43134325]
[1750300516663,0.22443077,104910.0,104900.0,0.52658501]
[1750300516876,0.23396238,104910.0,104900.0,0.32439464]
[1750300517080,0.23396238,104910.0,104900.0,0.32639464]
[1750300517303,0.22443077,104910.0,104900.0,0.33039464]
[1750300517514,0.23396238,104910.0,104900.0,0.33039464]
[1750300517932,0.22443077,104910.0,104900.0,0.33992734]
[1750300518130,0.21489925,104910.0,104900.0,0.54965005]
[1750300518347,0.22443059,104910.0,104900.0,0.54011771]
[1750300518551,0.21489925,104910.0,104900.0,0.54011771]
[1750300518766,0.22443059,104910.0,104900.0,0.54965023]
[1750300519060,0.21489925,104910.0,104900.0,0.54965023]
[1750300519269,0.20536809,104910.0,104900.0,0.55918203]
[1750300520365,0.20536809,104910.0,104900.0,0.55918212]
[1750300520588,0.20536809,104910.0,104900.0,0.55918167]
[1750300520806,0.20536809,104910.0,104900.0,0.54964942]
[1750300521239,0.20536809,104910.0,104900.0,0.55918167]
[1750300525512,5e-05,104910.0,104900.0,0.55918167]
[1750300530318,0.2,104920.0,104910.0,0.21923478]
[1750300530565,4.521035,104920.0,104910.0,0.20970326]
[1750300530780,0.00953034,104920.0,104910.0,0.21923487]
[1750300531003,0.20953034,104920.0,104910.0,0.26990326]
[1750300531649,0.20953034,104920.0,104910.0,0.27943487]
[1750300531861,0.20953034,104920.0,104910.0,0.26990326]
[1750300532068,0.20953034,104920.0,104910.0,0.27290326]
[1750300532741,4.321035,104920.0,104910.0,0.38820806]
[1750300533143,4.321035,104920.0,104910.0,0.38820815]
[1750300533982,4.321035,104920.0,104910.0,0.39773958]
[1750300534472,0.0385002,104920.0,104910.0,0.39773958]
[1750300534675,0.2385002,104920.0,104910.0,0.39773895]
[1750300534894,4.321035,104920.0,104910.0,0.39773895]
[1750300535120,4.321035,104920.0,104910.0,0.37867618]
[1750300535338,4.321035,104920.0,104910.0,0.36914502]
[1750300535578,4.321035,104920.0,104910.0,0.37867654]
[1750300536072,4.321035,104920.0,104910.0,0.38820797]
[1750300536312,4.321035,104920.0,104910.0,0.39773931]
[1750300536529,4.321035,104920.0,104910.0,0.38820797]
[1750300537638,4.321035,104920.0,104910.0,0.37867654]
[1750300537862,4.321035,104920.0,104910.0,0.38820797]
[1750300538119,4.321035,104920.0,104910.0,0.39773931]
[1750300539284,0.03909334,104920.0,104910.0,0.39773931]
[1750300539472,0.23909334,104920.0,104910.0,0.39773931]
[1750300539607,4.321035,104920.0,104910.0,0.39773931]
[1750300540328,0.04921952,104930.0,104920.0,0.25552142]
[1750300540528,0.26768038,104930.0,104920.0,0.26505249]
[1750300540719,0.27721036,104930.0,104920.0,0.0649]
[1750300541390,0.28822713,104930.0,104920.0,0.25552142]
[1750300541615,0.28822713,104930.0,104920.0,0.42890328]
[1750300541812,0.28822713,104930.0,104920.0,0.43843389]
[1750300541993,0.28822713,104930.0,104920.0,0.44796441]
[1750300542239,0.24858632,104930.0,104920.0,0.44796432]
[1750300542455,0.25811575,104930.0,104920.0,0.42890328]
[1750300542654,0.26764536,104930.0,104920.0,0.41937249]
[1750300542904,0.27717515,104930.0,104920.0,0.22875107]
[1750300543317,0.27717506,104930.0,104920.0,0.22875107]
[1750300543530,0.27717506,104930.0,104920.0,0.23828205]
[1750300543729,0.25811575,104930.0,104920.0,0.23828205]
[1750300543967,0.25811575,104930.0,104920.0,0.24781293]
[1750300544198,0.24858632,104930.0,104920.0,0.43843435]
[1750300544426,0.24858632,104930.0,104920.0,0.44796505]
[1750300544866,0.25811566,104930.0,104920.0,0.44796514]
[1750300545081,0.248589,104930.0,104920.0,0.44796514]
[1750300545307,0.25811897,104930.0,104920.0,0.42890347]
[1750300545772,0.25811897,104930.0,104920.0,0.43843435]
[1750300546209,0.25811897,104930.0,104920.0,0.42890347]
[1750300546915,0.05811897,104930.0,104920.0,0.43843435]
[1750300547153,0.05811888,104930.0,104920.0,0.43843435]
[1750300548067,0.05811888,104930.0,104920.0,0.42890347]
[1750300548298,0.04858954,104930.0,104920.0,0.43843435]
[1750300548516,0.04858954,104930.0,104920.0,0.44796505]
[1750300548710,0.04858954,104930.0,104920.0,0.43843435]
[1750300549191,0.04858954,104930.0,104920.0,0.44796505]
[1750300549699,0.04858954,104930.0,104920.0,0.45749566]
[1750300549932,0.05811888,104930.0,104920.0,0.44796514]
[1750300550151,0.00898357,104930.0,104920.0,0.44796514]
[1750300550375,5e-05,104930.0,104920.0,0.44796514]
[1750300550616,0.00957934,104930.0,104920.0,0.44796514]
[1750300550832,0.00898262,104930.0,104920.0,0.45749538]
[1750300551051,5e-05,104930.0,104920.0,0.45749447]
[1750300551514,5e-05,104930.0,104920.0,0.55373623]
[1750300554162,5e-05,104930.0,104920.0,0.94280516]
[1750300555910,5e-05,104930.0,104920.0,0.99528644]
[1750300556139,5e-05,104930.0,104920.0,0.97683112]
[1750300556360,5e-05,104930.0,104920.0,1.41351454]
[1750300556582,5e-05,104930.0,104920.0,1.40751454]
[1750300556798,5e-05,104930.0,104920.0,1.36957411]
[1750300557019,5e-05,104930.0,104920.0,1.37557411]
[1750300557292,5e-05,104930.0,104920.0,1.41350401]
[1750300557508,5e-05,104930.0,104920.0,1.40350401]
[1750300557724,5e-05,104930.0,104920.0,1.40850401]
[1750300557950,5e-05,104930.0,104920.0,1.42057411]
[1750300558409,5e-05,104930.0,104920.0,1.45348425]
[1750300558646,5e-05,104930.0,104920.0,1.42539311]
[1750300558870,5e-05,104930.0,104920.0,1.38474959]
[1750300559326,5e-05,104930.0,104920.0,1.4226452]
[1750300559816,5e-05,104930.0,104920.0,1.4326452]
[1750300577563,5e-05,104930.0,104920.0,1.39474959]
[1750300577975,5e-05,104930.0,104920.0,1.43262525]
[1750300578427,5e-05,104930.0,104920.0,1.39474959]
[1750300580051,5e-05,104940.0,104930.0,1.00650357]
[1750300580332,5e-05,104940.0,104930.0,1.1595677]
[1750300580531,5e-05,104940.0,104930.0,1.3533677]
[1750300580987,5e-05,104940.0,104930.0,1.39718654]
[1750300581227,5e-05,104940.0,104930.0,0.79341661]
[1750300581444,5e-05,104940.0,104930.0,0.94887761]
[1750300581668,5e-05,104940.0,104930.0,1.34675336]
[1750300581886,5e-05,104940.0,104930.0,0.92996106]
[1750300582117,5e-05,104940.0,104930.0,0.91550021]
[1750300582327,5e-05,104940.0,104930.0,0.92350021]
[1750300582546,5e-05,104940.0,104930.0,0.76914021]
[1750300582764,0.01990732,104940.0,104930.0,0.13768828]
[1750300582981,0.02943593,104940.0,104930.0,0.10924176]
[1750300583199,0.03896546,104940.0,104930.0,0.26368176]
[1750300583421,0.0294363,104940.0,104930.0,0.10424176]
[1750300583666,0.04789689,104940.0,104930.0,0.25868176]
[1750300583883,0.02883866,104940.0,104930.0,0.26268176]
[1750300584123,0.02943676,104940.0,104930.0,0.10824176]
[1750300584332,0.02943676,104940.0,104930.0,0.25872176]
[1750300584549,0.01990769,104940.0,104930.0,0.25872176]
[1750300584769,0.01990723,104940.0,104930.0,0.28031197]
[1750300584983,0.01990723,104940.0,104930.0,0.27078199]
[1750300585423,0.02943612,104940.0,104930.0,0.27078199]
[1750300585630,0.02943612,104940.0,104930.0,0.25572176]
[1750300585859,0.02943612,104940.0,104930.0,0.26525192]
[1750300586074,0.02943612,104940.0,104930.0,0.25172176]
[1750300586498,0.01990723,104940.0,104930.0,0.26325183]
[1750300586727,0.02943612,104940.0,104930.0,0.26325192]
[1750300586934,0.01990723,104940.0,104930.0,0.26325192]
[1750300587144,0.01990723,104940.0,104930.0,0.28231197]
[1750300587351,0.01990723,104940.0,104930.0,0.25372176]
[1750300587555,0.03896519,104940.0,104930.0,0.25372176]
[1750300587762,0.02943612,104940.0,104930.0,0.26325192]
[1750300588019,0.01990723,104940.0,104930.0,0.27278199]
[1750300588687,0.01990723,104940.0,104930.0,0.25372176]
[1750300588897,0.02943621,104940.0,104930.0,0.25372176]
[1750300589115,0.03896528,104940.0,104930.0,0.25372176]
[1750300589338,0.02943621,104940.0,104930.0,0.25372176]
[1750300589827,0.03896537,104940.0,104930.0,0.25372176]
[1750300590043,0.02943621,104940.0,104930.0,0.25372176]
[1750300591005,0.02943612,104940.0,104930.0,0.26325192]
[1750300591213,0.01990723,104940.0,104930.0,0.26325192]
[1750300591431,0.02943612,104940.0,104930.0,0.26325192]
[1750300591921,0.02913612,104940.0,104930.0,0.26325192]
[1750300592141,0.00957852,104940.0,104930.0,0.45385517]
[1750300592370,0.00957852,104940.0,104930.0,0.47291494]
[1750300592584,0.00957852,104940.0,104930.0,0.47291504]
[1750300592998,0.00957852,104940.0,104930.0,0.45385517]
[1750300593210,0.02863602,104940.0,104930.0,0.26325192]
[1750300593416,0.02863593,104940.0,104930.0,0.26125192]
[1750300593658,0.02863593,104940.0,104930.0,0.25172176]
[1750300593868,0.038165,104940.0,104930.0,0.25572176]
[1750300594095,0.04769398,104940.0,104930.0,0.25472176]
[1750300594314,0.03816482,104940.0,104930.0,0.26425192]
[1750300594527,0.04769389,104940.0,104930.0,0.25472176]
[1750300594746,0.04769462,104940.0,104930.0,0.25672176]
[1750300594949,0.03816537,104940.0,104930.0,0.25672176]
[1750300595157,0.04769462,104940.0,104930.0,0.25672176]
[1750300595377,0.03816537,104940.0,104930.0,0.25672176]
[1750300595797,0.04769462,104940.0,104930.0,0.25672176]
[1750300596543,0.04819462,104940.0,104930.0,0.25672176]
[1750300596750,0.03866537,104940.0,104930.0,0.25672176]
[1750300596983,0.0286363,104940.0,104930.0,0.25672176]
[1750300597190,0.03816528,104940.0,104930.0,0.25672176]
[1750300597607,0.0286363,104940.0,104930.0,0.26625192]
[1750300597822,0.0286363,104940.0,104930.0,0.25672176]
[1750300598031,0.03816546,104940.0,104930.0,0.25672176]
[1750300598268,0.03816537,104940.0,104930.0,0.25672176]
[1750300599007,0.0286363,104940.0,104930.0,0.25672176]
[1750300599206,5e-05,104940.0,104930.0,0.54994437]
[1750300599412,0.00957843,104940.0,104930.0,0.54041485]
[1750300599623,5e-05,104940.0,104930.0,0.54994446]
[1750300600266,0.00957843,104940.0,104930.0,0.54994446]
[1750300600468,5e-05,104940.0,104930.0,0.54041485]
[1750300601011,5e-05,104940.0,104930.0,0.54994446]
[1750300601221,5e-05,104940.0,104930.0,0.54041485]
[1750300603494,5e-05,104940.0,104930.0,0.54994446]
[1750300603711,5e-05,104940.0,104930.0,0.53088515]
[1750300603956,5e-05,104940.0,104930.0,0.54994464]
[1750300604622,0.00957843,104940.0,104930.0,0.54994464]
[1750300604829,0.00957843,104940.0,104930.0,0.53088515]
[1750300605241,0.01910704,104940.0,104930.0,0.54041504]
[1750300605448,0.01910704,104940.0,104930.0,0.53088515]
[1750300605864,0.01910704,104940.0,104930.0,0.54041504]
[1750300606072,0.01910704,104940.0,104930.0,0.54994483]
[1750300606278,0.01910704,104940.0,104930.0,0.54041504]
[1750300606493,0.00952861,104940.0,104930.0,0.54041504]
[1750300606934,0.01905704,104940.0,104930.0,0.54041504]
[1750300607120,0.01905695,104940.0,104930.0,0.54041504]
[1750300607367,0.01905695,104940.0,104930.0,0.53088515]
[1750300607548,0.01905695,104940.0,104930.0,0.54041504]
[1750300607773,0.01905695,104940.0,104930.0,0.54994483]
[1750300607981,0.01905695,104940.0,104930.0,0.54041504]
[1750300608410,0.00952843,104940.0,104930.0,0.54994474]
[1750300608828,0.00952843,104940.0,104930.0,0.54041504]
[1750300609052,0.01905704,104940.0,104930.0,0.54994483]
[1750300609260,0.00952843,104940.0,104930.0,0.54994483]
[1750300609492,0.01905704,104940.0,104930.0,0.54041504]
[1750300609708,0.01905704,104940.0,104930.0,0.53088524]
[1750300609917,0.02858584,104940.0,104930.0,0.53088524]
[1750300610125,0.02858575,104940.0,104930.0,0.54041522]
[1750300610336,0.02858575,104940.0,104930.0,0.53088524]
[1750300610839,0.02858575,104940.0,104930.0,0.32122176]
[1750300611051,0.03811464,104940.0,104930.0,0.33075192]
[1750300611258,0.03811464,104940.0,104930.0,0.32122176]
[1750300611897,0.02858575,104940.0,104930.0,0.34028181]
[1750300612778,0.02858575,104940.0,104930.0,0.33075183]
[1750300613224,0.02858575,104940.0,104930.0,0.34028181]
[1750300613647,0.02858575,104940.0,104930.0,0.33075183]
[1750300614285,0.03811455,104940.0,104930.0,0.33075183]
[1750300614487,0.03811455,104940.0,104930.0,0.34028181]
[1750300614708,0.03811455,104940.0,104930.0,0.33075183]
[1750300616070,0.03811455,104940.0,104930.0,0.32122176]
[1750300616274,0.03811455,104940.0,104930.0,0.33075192]
[1750300616485,0.03811455,104940.0,104930.0,0.36872851]
[1750300616699,0.04764344,104940.0,104930.0,0.35919844]
[1750300616907,0.03811455,104940.0,104930.0,0.36872851]
[1750300617162,0.2,104950.0,104930.0,0.36872851]
[1750300617375,4.12997796,104950.0,104930.0,0.34028199]
[1750300617577,0.20894296,104950.0,104930.0,0.34028199]
[1750300617787,0.00952871,104940.0,104930.0,0.34028199]
[1750300618203,0.01905704,104940.0,104930.0,0.53841522]
[1750300618460,0.01905704,104940.0,104930.0,0.54894511]
[1750300618669,0.41915138,104950.0,104930.0,0.55847481]
[1750300618866,0.42809417,104950.0,104930.0,0.54894511]
[1750300619090,0.00952852,104940.0,104930.0,0.58192142]
[1750300619299,0.00952852,104940.0,104930.0,0.58392142]
[1750300619508,0.00952852,104940.0,104930.0,0.58592142]
[1750300619717,0.00952852,104940.0,104930.0,0.58392142]
[1750300620345,0.00952852,104940.0,104930.0,0.55333176]
[1750300620558,0.00952852,104940.0,104930.0,0.56286174]
[1750300620776,0.00952852,104940.0,104930.0,0.57639163]
[1750300621122,0.00952843,104940.0,104930.0,0.58592142]
[1750300621339,0.00952843,104940.0,104930.0,0.58692142]
[1750300621776,0.00952843,104940.0,104930.0,0.58592142]
[1750300621992,0.00952843,104940.0,104930.0,0.58792142]
[1750300622213,0.00952843,104940.0,104930.0,0.58792096]
[1750300622432,0.00952843,104940.0,104930.0,0.57839126]
[1750300622651,0.00952843,104940.0,104930.0,0.54994474]
[1750300623612,0.41915138,104950.0,104930.0,0.55947444]
[1750300623798,0.23752707,104950.0,104930.0,0.56886119]
[1750300624225,0.23752707,104950.0,104930.0,0.57839089]
[1750300624636,0.23752707,104950.0,104930.0,0.57639089]
[1750300625040,0.23752707,104950.0,104930.0,0.54489089]
[1750300625182,0.23752707,104950.0,104940.0,0.0319]
[1750300625980,0.428094,104950.0,104940.0,0.0319]
[1750300626180,0.40962343,104950.0,104930.0,0.34176828]
[1750300626389,0.00952843,104940.0,104930.0,0.55143167]
[1750300626589,0.01905704,104940.0,104930.0,0.55343167]
[1750300626802,0.01905704,104940.0,104930.0,0.56296156]
[1750300627007,0.00952843,104940.0,104930.0,0.57249126]
[1750300627211,0.2190565,104950.0,104940.0,0.0306]
[1750300627415,0.2190565,104950.0,104940.0,0.0628]
[1750300627680,0.20952789,104950.0,104940.0,0.0628]
[1750300627894,4.321035,104950.0,104940.0,0.28197221]
[1750300628124,0.20005,104960.0,104950.0,0.26349518]
[1750300628317,0.20005,104960.0,104950.0,0.5236651]
[1750300628529,5e-05,104960.0,104950.0,0.5427207]
[1750300629466,5e-05,104960.0,104950.0,0.5447207]
[1750300629926,5e-05,104960.0,104950.0,0.53519299]
[1750300630138,5e-05,104960.0,104950.0,0.54472079]
[1750300630550,0.00957662,104960.0,104950.0,0.53519299]
[1750300630754,5e-05,104960.0,104950.0,0.53519299]
[1750300630957,5e-05,104960.0,104950.0,0.54472079]
[1750300631384,5e-05,104960.0,104950.0,0.5582485]
[1750300640360,0.00952589,104970.0,104960.0,0.26547603]
[1750300640579,0.2190516,104970.0,104960.0,0.26547603]
[1750300641003,0.2190516,104970.0,104960.0,0.27500319]
[1750300641221,0.2190516,104970.0,104960.0,0.26547612]
[1750300641485,0.22857767,104970.0,104960.0,0.26547612]
[1750300641730,0.22857767,104970.0,104960.0,0.26647612]
[1750300642178,0.22857767,104970.0,104960.0,0.26847612]
[1750300642394,0.2190516,104970.0,104960.0,0.26847612]
[1750300642640,0.2190516,104970.0,104960.0,0.27800337]
[1750300643282,0.22797896,104970.0,104960.0,0.28753053]
[1750300643510,0.22797896,104970.0,104960.0,0.27800337]
[1750300644213,0.2190516,104970.0,104960.0,0.27800337]
[1750300644478,0.23750544,104970.0,104960.0,0.07792743]
[1750300645293,0.23750544,104970.0,104960.0,0.0684]
[1750300645765,0.23750544,104970.0,104960.0,0.07792743]
[1750300646019,0.23750575,104970.0,104960.0,0.0684]
[1750300646557,0.22797959,104970.0,104960.0,0.07792743]
[1750300646804,0.23750566,104970.0,104960.0,0.08745477]
[1750300647069,0.22797959,104970.0,104960.0,0.08745477]
[1750300647328,0.22797959,104970.0,104960.0,0.09698202]
[1750300647720,0.22797959,104970.0,104960.0,0.2875308]
[1750300647721,0.22797959,104970.0,104960.0,0.27800355]
[1750300648020,0.23750557,104970.0,104960.0,0.2875308]
[1750300648395,0.23751123,104970.0,104960.0,0.27800355]
[1750300648663,0.21845936,104970.0,104960.0,0.28753062]
[1750300648887,0.23751123,104970.0,104960.0,0.27800355]
[1750300649451,0.23751123,104970.0,104960.0,0.07792743]
[1750300649706,0.20893365,104970.0,104960.0,0.35519054]
[1750300649929,0.21845936,104970.0,104960.0,0.37424495]
[1750300650397,0.20893365,104970.0,104960.0,0.38377193]
[1750300651363,0.20893334,104970.0,104960.0,0.37424495]
[1750300651573,0.21845914,104970.0,104960.0,0.37424504]
[1750300652205,0.21845914,104970.0,104960.0,0.37424513]
[1750300652418,0.21845914,104970.0,104960.0,0.38377229]
[1750300652644,0.20893334,104970.0,104960.0,0.40282634]
[1750300652855,0.21845914,104970.0,104960.0,0.39329936]
[1750300653066,0.23751149,104970.0,104960.0,0.16464176]
[1750300653285,0.22798524,104970.0,104960.0,0.16464176]
[1750300653511,0.2375114,104970.0,104960.0,0.16464176]
[1750300653729,0.22798524,104970.0,104960.0,0.18369635]
[1750300653951,0.22798515,104970.0,104960.0,0.18369635]
[1750300654165,0.22798515,104970.0,104960.0,0.38377229]
[1750300654607,0.22798515,104970.0,104960.0,0.37424513]
[1750300654837,0.23751131,104970.0,104960.0,0.16464176]
[1750300655261,0.23751131,104970.0,104960.0,0.17416919]
[1750300655732,0.23751122,104970.0,104960.0,0.16464176]
[1750300655942,0.22798515,104970.0,104960.0,0.1741691]
[1750300656165,0.23751132,104970.0,104960.0,0.16464176]
[1750300656378,0.23751132,104970.0,104960.0,0.17416919]
[1750300656617,0.23751132,104970.0,104960.0,0.18369653]
[1750300657546,0.24703757,104970.0,104960.0,0.16464176]
[1750300657740,0.23751132,104970.0,104960.0,0.16464176]
[1750300657952,0.24703748,104970.0,104960.0,0.16464176]
[1750300658431,0.23751132,104970.0,104960.0,0.17416919]
[1750300658883,0.21846158,104970.0,104960.0,0.37424531]
[1750300659093,0.21846158,104970.0,104960.0,0.38377256]
[1750300659314,0.22798747,104970.0,104960.0,0.38377256]
[1750300659741,0.23751354,104970.0,104960.0,0.37424531]
[1750300659952,0.24704033,104970.0,104960.0,0.16464176]
[1750300660159,0.22798783,104970.0,104960.0,0.17416919]
[1750300660852,0.21846176,104970.0,104960.0,0.18369644]
[1750300661744,0.20893587,104970.0,104960.0,0.38377238]
[1750300661987,0.20893587,104970.0,104960.0,0.39329945]
[1750300662205,0.20893587,104970.0,104960.0,0.38377238]
[1750300662849,0.20893587,104970.0,104960.0,0.39329945]
[1750300663064,0.20893587,104970.0,104960.0,0.40282643]
[1750300663277,0.20893587,104970.0,104960.0,0.40282589]
[1750300663736,0.20893587,104970.0,104960.0,0.40282544]
[1750300664414,0.00893587,104970.0,104960.0,0.40282544]
[1750300664675,0.00893587,104970.0,104960.0,0.39139828]
[1750300664899,0.07672872,104980.0,104960.0,0.31837148]
[1750300664900,0.08566542,104980.0,104960.0,0.31837148]
[1750300665209,0.10071892,104980.0,104970.0,0.0635]
[1750300665446,0.31024436,104980.0,104970.0,0.0635]
[1750300666087,0.30071892,104980.0,104970.0,0.0635]
[1750300666307,0.28343269,104980.0,104970.0,0.0635]
[1750300666524,0.11024435,104980.0,104970.0,0.0635]
[1750300666749,0.31024426,104980.0,104970.0,0.0635]
[1750300666973,0.3035413,104980.0,104970.0,0.0635]
[1750300669282,0.29401577,104980.0,104970.0,0.0635]
[1750300669535,0.28449042,104980.0,104970.0,0.0635]
[1750300669776,0.26661598,104980.0,104970.0,0.0635]
[1750300670001,0.28566695,104980.0,104970.0,0.0635]
[1750300670254,0.30353851,104980.0,104970.0,0.0635]
[1750300670462,0.29401298,104980.0,104970.0,0.0635]
[1750300670680,0.30353842,104980.0,104970.0,0.0635]
[1750300671067,0.29401298,104980.0,104970.0,0.0635]
[1750300671283,0.28566686,104980.0,104970.0,0.0635]
[1750300671878,0.27614133,104980.0,104970.0,0.0635]
[1750300672375,0.26661598,104980.0,104970.0,0.0635]
[1750300673590,0.27614142,104980.0,104970.0,0.0635]
[1750300674808,0.2672042,104980.0,104970.0,0.0635]
[1750300675026,0.2761386,104980.0,104970.0,0.0635]
[1750300675337,0.27617669,104980.0,104970.0,0.0635]
[1750300675559,0.28566422,104980.0,104970.0,0.0635]
[1750300675784,0.08566422,104980.0,104970.0,0.0635]
[1750300676021,0.2761386,104980.0,104970.0,0.0635]
[1750300677435,0.26661316,104980.0,104970.0,0.0635]
[1750300677655,0.26661279,104980.0,104970.0,0.07302653]
[1750300678108,0.26661269,104980.0,104970.0,0.07302644]
[1750300678795,0.2666119,104980.0,104970.0,0.07302653]
[1750300679015,0.07613707,104980.0,104970.0,0.07302653]
[1750300679247,0.07613707,104980.0,104970.0,0.0635]
[1750300679480,0.05708683,104980.0,104970.0,0.26355715]
[1750300679715,0.25708674,104980.0,104970.0,0.28260993]
[1750300679989,0.25767811,104980.0,104970.0,0.29213618]
[1750300680466,0.24815313,104980.0,104970.0,0.29213618]
[1750300680696,5e-05,104980.0,104970.0,0.39790346]
[1750300681398,5e-05,104980.0,104970.0,0.42633795]
[1750300681623,5e-05,104980.0,104970.0,0.39790346]
[1750300682453,5e-05,104980.0,104970.0,0.42633795]
[1750300683133,5e-05,104980.0,104970.0,0.42833795]
[1750300683578,5e-05,104980.0,104970.0,0.78848195]
[1750300683876,5e-05,104980.0,104970.0,0.46425061]
[1750300684130,5e-05,104980.0,104970.0,0.82439461]
[1750300684371,5e-05,104980.0,104970.0,0.85731191]
[1750300684589,5e-05,104980.0,104970.0,0.81939925]
[1750300685039,5e-05,104980.0,104970.0,0.78648195]
[1750300685261,5e-05,104980.0,104970.0,0.43033795]
[1750300685483,5e-05,104980.0,104970.0,0.79048195]
[1750300686155,5e-05,104980.0,104970.0,0.79648195]
[1750300687782,5e-05,104980.0,104970.0,0.82919524]
[1750300687985,5e-05,104980.0,104970.0,0.79648195]
[1750300694076,5e-05,104980.0,104970.0,0.95072195]
[1750300697766,5e-05,104980.0,104970.0,0.43633795]
[1750300697979,5e-05,104980.0,104970.0,0.59057795]
[1750300701514,5e-05,104980.0,104970.0,0.95072195]
[1750300702863,5e-05,104980.0,104970.0,0.94962195]
[1750300703304,5e-05,104980.0,104970.0,0.58947795]
[1750300703534,5e-05,104980.0,104970.0,0.94962195]
[1750300707670,5e-05,104980.0,104970.0,0.98753461]
[1750300708091,5e-05,104980.0,104970.0,0.62739061]
[1750300708307,5e-05,104980.0,104970.0,0.98753461]
[1750300708952,5e-05,104980.0,104970.0,0.83329461]
[1750300709182,5e-05,104980.0,104970.0,0.62735061]
[1750300711421,5e-05,104980.0,104970.0,0.98749461]
[1750300711638,5e-05,104980.0,104970.0,0.95906012]
[1750300713387,5e-05,104980.0,104970.0,0.59891612]
[1750300713600,5e-05,104980.0,104970.0,0.95906012]
[1750300722251,5e-05,104980.0,104970.0,0.95436012]
[1750300724115,5e-05,104980.0,104970.0,0.96890097]
[1750300724330,5e-05,104980.0,104970.0,1.38591396]
[1750300724732,5e-05,104980.0,104970.0,1.02576996]
[1750300725652,5e-05,104980.0,104970.0,0.9878573]
[1750300729268,5e-05,104980.0,104970.0,0.9677133]
[1750300729485,5e-05,104980.0,104970.0,1.6880013]
[1750300729748,5e-05,104980.0,104970.0,1.75695763]
[1750300729964,5e-05,104980.0,104970.0,1.80695763]
[1750300730396,5e-05,104980.0,104970.0,1.80295763]
[1750300730816,5e-05,104980.0,104970.0,1.80195763]
[1750300730971,5e-05,104980.0,104970.0,1.40129902]
[1750300731184,0.0111766,104990.0,104980.0,0.10671662]
[1750300731389,0.00559506,104990.0,104980.0,1.19500073]